[Event "Titled Tuesday Blitz June 21 Late 2022"]
[White "Mangialardo, Tiago Carvalho"]
[Black "Remolar Gallen, Jose"]
[WhiteFideId "2130718"]
[BlackFideId "2215187"]
[WhiteElo "2089"]
[BlackElo "2205"]
[Result "0-1"]
[Round "09"]
[TimeControl "180+1"]
[Date "2022.06.22"]
[WhiteClock "0:00:03"]
[BlackClock "0:00:34"]

1. e4 {[%clk 0:03:00]}  c5 {[%clk 0:02:59]} 2. Nf3 {[%clk 0:03:01]}  d6 {[%clk 0:03:00]} 3. d4 {[%clk 0:03:02]}  cxd4 {[%clk 0:03:00]} 4. Nxd4 {[%clk 0:03:02]}  Nf6 {[%clk 0:03:01]} 5. Nc3 {[%clk 0:03:03]}  a6 {[%clk 0:03:01]} 6. Be3 {[%clk 0:03:04]}  e5 {[%clk 0:03:02]} 7. Nb3 {[%clk 0:03:03]}  Be6 {[%clk 0:03:02]} 8. Be2 {[%clk 0:03:02]}  Be7 {[%clk 0:03:01]} 9. Qd2 {[%clk 0:03:02]}  Nbd7 {[%clk 0:02:51]} 10. O-O-O {[%clk 0:03:00]}  Qc7 {[%clk 0:02:47]} 11. f3 {[%clk 0:03:00]}  h5 {[%clk 0:02:40]} 12. h3 {[%clk 0:03:00]}  h4 {[%clk 0:02:40]} 13. f4 {[%clk 0:02:57]}  b5 {[%clk 0:02:38]} 14. Nd5 {[%clk 0:02:34]}  Nxd5 {[%clk 0:02:10]} 15. exd5 {[%clk 0:02:31]}  Bf5 {[%clk 0:02:10]} 16. Bg4 {[%clk 0:02:27]}  Bxg4 {[%clk 0:02:06]} 17. hxg4 {[%clk 0:02:28]}  a5 {[%clk 0:01:26]} 18. Qd3 {[%clk 0:02:12]}  a4 {[%clk 0:01:24]} 19. Nd2 {[%clk 0:02:12]}  Rc8 {[%clk 0:01:20]} 20. Ne4 {[%clk 0:01:55]}  b4 {[%clk 0:01:06]} 21. f5 {[%clk 0:01:54]}  Qc4 {[%clk 0:00:57]} 22. Qxc4 {[%clk 0:01:38]}  Rxc4 {[%clk 0:00:58]} 23. Nf2 {[%clk 0:01:18]}  b3 {[%clk 0:00:54]} 24. axb3 {[%clk 0:01:17]}  axb3 {[%clk 0:00:55]} 25. c3 {[%clk 0:01:17]}  O-O {[%clk 0:00:49]} 26. g5 {[%clk 0:00:46]}  Ra8 {[%clk 0:00:41]} 27. Kd2 {[%clk 0:00:36]}  Nc5 {[%clk 0:00:41]} 28. Ra1 {[%clk 0:00:32]}  Ra2 {[%clk 0:00:39]} 29. Nd3 {[%clk 0:00:16]}  Ne4+ {[%clk 0:00:35]} 30. Ke2 {[%clk 0:00:12]}  Nxc3+ {[%clk 0:00:35]} 31. Kf3 {[%clk 0:00:10]}  e4+ {[%clk 0:00:36]} 32. Kf2 {[%clk 0:00:08]}  exd3 {[%clk 0:00:36]} 33. Rxa2 {[%clk 0:00:03]}  Ne4+ {[%clk 0:00:35]} 34. Kf3 {[%clk 0:00:04]}  bxa2 {[%clk 0:00:35]} 35. Rxh4 {[%clk 0:00:03]}  a1=Q {[%clk 0:00:34]} 0-1


[Site "https://www.chess.com"]

[Event "Titled Tuesday Blitz June 21 Late 2022"]
[White "Murzin, Volodar"]
[Black "Le, Tuan Minh"]
[WhiteFideId "44155573"]
[BlackFideId "12401153"]
[WhiteElo "2585"]
[BlackElo "2530"]
[Result "0-1"]
[Round "09"]
[TimeControl "180+1"]
[Date "2022.06.21"]
[WhiteClock "0:00:03"]
[BlackClock "0:00:37"]

1. e4 {[%clk 0:02:59]}  c5 {[%clk 0:03:00]} 2. Nf3 {[%clk 0:02:58]}  Nf6 {[%clk 0:03:00]} 3. e5 {[%clk 0:02:55]}  Nd5 {[%clk 0:03:01]} 4. Nc3 {[%clk 0:02:55]}  e6 {[%clk 0:03:01]} 5. Nxd5 {[%clk 0:02:55]}  exd5 {[%clk 0:03:01]} 6. d4 {[%clk 0:02:55]}  Nc6 {[%clk 0:03:02]} 7. c3 {[%clk 0:02:13]}  d6 {[%clk 0:03:01]} 8. Bb5 {[%clk 0:01:58]}  cxd4 {[%clk 0:02:59]} 9. Qxd4 {[%clk 0:01:49]}  a6 {[%clk 0:02:01]} 10. Bxc6+ {[%clk 0:01:45]}  bxc6 {[%clk 0:02:02]} 11. exd6 {[%clk 0:01:44]}  Qxd6 {[%clk 0:02:03]} 12. O-O {[%clk 0:01:43]}  c5 {[%clk 0:02:00]} 13. Re1+ {[%clk 0:01:33]}  Be6 {[%clk 0:01:59]} 14. Qd1 {[%clk 0:00:54]}  Be7 {[%clk 0:01:57]} 15. Bg5 {[%clk 0:00:47]}  f6 {[%clk 0:01:35]} 16. Bf4 {[%clk 0:00:43]}  Qd7 {[%clk 0:01:34]} 17. Qe2 {[%clk 0:00:39]}  Kf7 {[%clk 0:01:33]} 18. Rad1 {[%clk 0:00:29]}  Rhe8 {[%clk 0:01:30]} 19. h3 {[%clk 0:00:18]}  Bf8 {[%clk 0:01:30]} 20. Qd3 {[%clk 0:00:17]}  Kg8 {[%clk 0:01:29]} 21. Bg3 {[%clk 0:00:17]}  Bf7 {[%clk 0:01:30]} 22. b3 {[%clk 0:00:16]}  a5 {[%clk 0:01:29]} 23. Nd2 {[%clk 0:00:14]}  a4 {[%clk 0:01:29]} 24. Nf1 {[%clk 0:00:13]}  axb3 {[%clk 0:01:29]} 25. axb3 {[%clk 0:00:14]}  Qb7 {[%clk 0:01:29]} 26. Rxe8 {[%clk 0:00:13]}  Rxe8 {[%clk 0:01:29]} 27. Ne3 {[%clk 0:00:13]}  Rd8 {[%clk 0:01:09]} 28. Qc2 {[%clk 0:00:13]}  d4 {[%clk 0:01:01]} 29. cxd4 {[%clk 0:00:13]}  cxd4 {[%clk 0:01:02]} 30. Nc4 {[%clk 0:00:13]}  Bb4 {[%clk 0:01:02]} 31. Qd3 {[%clk 0:00:09]}  Bg6 {[%clk 0:01:00]} 32. Qe2 {[%clk 0:00:09]}  d3 {[%clk 0:01:00]} 33. Qg4 {[%clk 0:00:08]}  Qd7 {[%clk 0:00:57]} 34. Qf3 {[%clk 0:00:06]}  h5 {[%clk 0:00:55]} 35. Ne3 {[%clk 0:00:05]}  Kh7 {[%clk 0:00:54]} 36. h4 {[%clk 0:00:05]}  d2 {[%clk 0:00:53]} 37. Nc4 {[%clk 0:00:05]}  Qd3 {[%clk 0:00:53]} 38. Bf4 {[%clk 0:00:06]}  Qxf3 {[%clk 0:00:52]} 39. gxf3 {[%clk 0:00:06]}  Bc2 {[%clk 0:00:53]} 40. Rxd2 {[%clk 0:00:07]}  Bxd2 {[%clk 0:00:53]} 41. Nxd2 {[%clk 0:00:08]}  Rd4 {[%clk 0:00:53]} 42. Be3 {[%clk 0:00:06]}  Rxh4 {[%clk 0:00:52]} 43. Bc5 {[%clk 0:00:06]}  Rf4 {[%clk 0:00:50]} 44. b4 {[%clk 0:00:07]}  Rf5 {[%clk 0:00:51]} 45. Kg2 {[%clk 0:00:07]}  Rd5 {[%clk 0:00:50]} 46. Nc4 {[%clk 0:00:07]}  Bd3 {[%clk 0:00:50]} 47. Ne3 {[%clk 0:00:07]}  Rd7 {[%clk 0:00:50]} 48. Kg3 {[%clk 0:00:06]}  g5 {[%clk 0:00:48]} 49. f4 {[%clk 0:00:06]}  h4+ {[%clk 0:00:48]} 50. Kh3 {[%clk 0:00:06]}  Kg6 {[%clk 0:00:45]} 51. fxg5 {[%clk 0:00:06]}  fxg5 {[%clk 0:00:46]} 52. Kg2 {[%clk 0:00:04]}  Rf7 {[%clk 0:00:43]} 53. Ng4 {[%clk 0:00:04]}  Be4+ {[%clk 0:00:39]} 54. Kg1 {[%clk 0:00:04]}  Rf4 {[%clk 0:00:39]} 55. Ne5+ {[%clk 0:00:04]}  Kh5 {[%clk 0:00:39]} 56. Be3 {[%clk 0:00:04]}  Rf5 {[%clk 0:00:39]} 57. Nc4 {[%clk 0:00:04]}  Rd5 {[%clk 0:00:37]} 58. Nd2 {[%clk 0:00:03]}  Bf5 {[%clk 0:00:38]} 59. Kg2 {[%clk 0:00:03]}  g4 {[%clk 0:00:38]} 60. Nc4 {[%clk 0:00:03]}  Be4+ {[%clk 0:00:38]} 61. Kh2 {[%clk 0:00:02]}  Rd1 {[%clk 0:00:38]} 62. f3 {[%clk 0:00:03]}  Bxf3 {[%clk 0:00:38]} 63. Bf2 {[%clk 0:00:03]}  Rh1# {[%clk 0:00:37]} 0-1


[Site "https://www.chess.com"]

[Event "Titled Tuesday Blitz June 21 Late 2022"]
[White "Pakleza, Zbigniew"]
[Black "Zlatin, Alexander"]
[WhiteFideId "1119290"]
[BlackFideId "2810549"]
[WhiteElo "2467"]
[BlackElo "2228"]
[Result "1-0"]
[Round "09"]
[TimeControl "180+1"]
[Date "2022.06.21"]
[WhiteClock "0:00:03"]
[BlackClock "0:00:02"]

1. d4 {[%clk 0:03:00]}  d5 {[%clk 0:02:57]} 2. Bf4 {[%clk 0:03:00]}  e6 {[%clk 0:02:45]} 3. e3 {[%clk 0:03:00]}  Bd6 {[%clk 0:02:45]} 4. Bg3 {[%clk 0:03:00]}  Nf6 {[%clk 0:02:45]} 5. Nd2 {[%clk 0:03:00]}  c5 {[%clk 0:02:44]} 6. Ngf3 {[%clk 0:02:57]}  Nc6 {[%clk 0:02:44]} 7. c3 {[%clk 0:02:55]}  O-O {[%clk 0:02:40]} 8. Bd3 {[%clk 0:02:54]}  Re8 {[%clk 0:02:37]} 9. Ne5 {[%clk 0:02:53]}  Ne7 {[%clk 0:02:35]} 10. f4 {[%clk 0:02:34]}  Nf5 {[%clk 0:02:31]} 11. Bf2 {[%clk 0:02:34]}  Be7 {[%clk 0:02:05]} 12. Qf3 {[%clk 0:02:32]}  b6 {[%clk 0:02:01]} 13. g4 {[%clk 0:02:10]}  Nd6 {[%clk 0:02:00]} 14. Nc6 {[%clk 0:02:07]}  Qc7 {[%clk 0:01:58]} 15. Nxe7+ {[%clk 0:02:07]}  Qxe7 {[%clk 0:01:58]} 16. Bh4 {[%clk 0:02:06]}  cxd4 {[%clk 0:01:51]} 17. exd4 {[%clk 0:02:01]}  Bb7 {[%clk 0:01:46]} 18. O-O {[%clk 0:01:59]}  Nde4 {[%clk 0:01:41]} 19. Bxe4 {[%clk 0:01:22]}  dxe4 {[%clk 0:01:36]} 20. Qe2 {[%clk 0:01:18]}  e3 {[%clk 0:01:27]} 21. Bxf6 {[%clk 0:01:07]}  Qxf6 {[%clk 0:01:12]} 22. Qxe3 {[%clk 0:01:07]}  Qg6 {[%clk 0:01:12]} 23. h3 {[%clk 0:01:04]}  h5 {[%clk 0:01:11]} 24. g5 {[%clk 0:00:49]}  f6 {[%clk 0:00:54]} 25. Nf3 {[%clk 0:00:42]}  fxg5 {[%clk 0:00:20]} 26. Nxg5 {[%clk 0:00:37]}  Qf5 {[%clk 0:00:17]} 27. Rae1 {[%clk 0:00:31]}  Bd5 {[%clk 0:00:15]} 28. b3 {[%clk 0:00:26]}  b5 {[%clk 0:00:16]} 29. Rf2 {[%clk 0:00:22]}  Rac8 {[%clk 0:00:15]} 30. Kh2 {[%clk 0:00:22]}  a5 {[%clk 0:00:15]} 31. Rg1 {[%clk 0:00:21]}  a4 {[%clk 0:00:15]} 32. bxa4 {[%clk 0:00:22]}  bxa4 {[%clk 0:00:15]} 33. a3 {[%clk 0:00:23]}  Rb8 {[%clk 0:00:15]} 34. Qe2 {[%clk 0:00:13]}  g6 {[%clk 0:00:07]} 35. c4 {[%clk 0:00:12]}  Bc6 {[%clk 0:00:03]} 36. Qe5 {[%clk 0:00:07]}  Rb3 {[%clk 0:00:03]} 37. Qxf5 {[%clk 0:00:04]}  exf5 {[%clk 0:00:04]} 38. d5 {[%clk 0:00:04]}  Bd7 {[%clk 0:00:04]} 39. Nf3 {[%clk 0:00:03]}  Rxa3 {[%clk 0:00:03]} 40. Ne5 {[%clk 0:00:03]}  Bc8 {[%clk 0:00:04]} 41. Rxg6+ {[%clk 0:00:03]}  Kh7 {[%clk 0:00:04]} 42. Rc6 {[%clk 0:00:03]}  Rg8 {[%clk 0:00:03]} 43. Rc7+ {[%clk 0:00:03]}  Kh6 {[%clk 0:00:02]} 44. Nf7+ {[%clk 0:00:04]}  Kg7 {[%clk 0:00:02]} 45. Rg2+ {[%clk 0:00:04]}  Kf6 {[%clk 0:00:02]} 46. Rxg8 {[%clk 0:00:04]}  Ra2+ {[%clk 0:00:02]} 47. Rg2 {[%clk 0:00:04]}  Ra1 {[%clk 0:00:03]} 48. Ne5 {[%clk 0:00:04]}  h4 {[%clk 0:00:03]} 49. Rxc8 {[%clk 0:00:04]}  a3 {[%clk 0:00:03]} 50. Rc6+ {[%clk 0:00:05]}  Ke7 {[%clk 0:00:03]} 51. Rg7+ {[%clk 0:00:05]}  Kf8 {[%clk 0:00:03]} 52. Rf7+ {[%clk 0:00:05]}  Ke8 {[%clk 0:00:03]} 53. Ra6 {[%clk 0:00:03]}  Ra2+ {[%clk 0:00:04]} 54. Kg1 {[%clk 0:00:03]}  Ra1+ {[%clk 0:00:05]} 55. Kf2 {[%clk 0:00:04]}  a2 {[%clk 0:00:02]} 56. Ra8# {[%clk 0:00:03]} 1-0


[Site "https://www.chess.com"]

[Event "Titled Tuesday Blitz June 21 Late 2022"]
[White "Papp, Levente"]
[Black "Levine, Joseph"]
[WhiteFideId "751243"]
[BlackFideId "30940346"]
[WhiteElo "2308"]
[BlackElo "1802"]
[Result "1-0"]
[Round "09"]
[TimeControl "180+1"]
[Date "2022.06.21"]
[WhiteClock "0:00:21"]
[BlackClock "0:00:03"]

1. Nf3 {[%clk 0:03:00]}  d5 {[%clk 0:02:58]} 2. g3 {[%clk 0:03:00]}  Nf6 {[%clk 0:02:58]} 3. Bg2 {[%clk 0:03:01]}  g6 {[%clk 0:02:58]} 4. O-O {[%clk 0:03:00]}  Bg7 {[%clk 0:02:59]} 5. c4 {[%clk 0:02:57]}  c6 {[%clk 0:02:53]} 6. cxd5 {[%clk 0:02:53]}  cxd5 {[%clk 0:02:54]} 7. d4 {[%clk 0:02:53]}  O-O {[%clk 0:02:54]} 8. Nc3 {[%clk 0:02:54]}  Nc6 {[%clk 0:02:53]} 9. Ne5 {[%clk 0:02:54]}  Be6 {[%clk 0:02:17]} 10. Bf4 {[%clk 0:02:50]}  Rc8 {[%clk 0:02:16]} 11. Nxc6 {[%clk 0:02:40]}  Rxc6 {[%clk 0:02:01]} 12. Be5 {[%clk 0:02:40]}  Qd7 {[%clk 0:01:52]} 13. Rc1 {[%clk 0:02:20]}  Rd8 {[%clk 0:01:47]} 14. Re1 {[%clk 0:02:13]}  Ne8 {[%clk 0:01:29]} 15. Bxg7 {[%clk 0:02:11]}  Kxg7 {[%clk 0:01:30]} 16. Qd2 {[%clk 0:01:31]}  Nf6 {[%clk 0:01:10]} 17. b3 {[%clk 0:01:09]}  Rdc8 {[%clk 0:01:07]} 18. Na4 {[%clk 0:01:07]}  Rxc1 {[%clk 0:01:04]} 19. Rxc1 {[%clk 0:01:08]}  Rxc1+ {[%clk 0:01:04]} 20. Qxc1 {[%clk 0:01:09]}  b6 {[%clk 0:01:04]} 21. Nb2 {[%clk 0:01:06]}  Bh3 {[%clk 0:01:02]} 22. Bh1 {[%clk 0:01:05]}  h5 {[%clk 0:01:01]} 23. Nd3 {[%clk 0:01:03]}  Bf5 {[%clk 0:00:54]} 24. Ne5 {[%clk 0:01:02]}  Qb5 {[%clk 0:00:52]} 25. Bf3 {[%clk 0:01:02]}  Be4 {[%clk 0:00:50]} 26. Qc7 {[%clk 0:01:00]}  Kf8 {[%clk 0:00:20]} 27. Qb8+ {[%clk 0:00:48]}  Ne8 {[%clk 0:00:14]} 28. Qxa7 {[%clk 0:00:47]}  Bxf3 {[%clk 0:00:13]} 29. exf3 {[%clk 0:00:48]}  Nf6 {[%clk 0:00:10]} 30. Qb8+ {[%clk 0:00:43]}  Ne8 {[%clk 0:00:05]} 31. Qd8 {[%clk 0:00:39]}  f6 {[%clk 0:00:03]} 32. Nd7+ {[%clk 0:00:36]}  Kf7 {[%clk 0:00:04]} 33. Nxb6 {[%clk 0:00:36]}  e6 {[%clk 0:00:03]} 34. Qd7+ {[%clk 0:00:36]}  Qxd7 {[%clk 0:00:03]} 35. Nxd7 {[%clk 0:00:37]}  Nd6 {[%clk 0:00:04]} 36. a4 {[%clk 0:00:32]}  Ke7 {[%clk 0:00:05]} 37. Nc5 {[%clk 0:00:32]}  e5 {[%clk 0:00:04]} 38. dxe5 {[%clk 0:00:30]}  fxe5 {[%clk 0:00:05]} 39. Kf1 {[%clk 0:00:27]}  Nf5 {[%clk 0:00:04]} 40. a5 {[%clk 0:00:21]}  Kd6 {[%clk 0:00:03]} 41. a6 {[%clk 0:00:21]}  Kc6 {[%clk 0:00:03]} 42. a7 {[%clk 0:00:21]} 1-0


[Site "https://www.chess.com"]

[Event "Titled Tuesday Blitz June 21 Late 2022"]
[White "Pappelis, Dimitrios"]
[Black "Bachmann, Axel"]
[WhiteFideId "4215281"]
[BlackFideId "3700488"]
[WhiteElo "1998"]
[BlackElo "2587"]
[Result "0-1"]
[Round "09"]
[TimeControl "180+1"]
[Date "2022.06.22"]
[WhiteClock "0:00:16"]
[BlackClock "0:01:22"]

1. e4 {[%clk 0:02:49]}  c6 {[%clk 0:02:59]} 2. d4 {[%clk 0:02:40]}  d5 {[%clk 0:03:00]} 3. exd5 {[%clk 0:02:40]}  cxd5 {[%clk 0:03:00]} 4. c4 {[%clk 0:02:41]}  Nf6 {[%clk 0:03:00]} 5. Nc3 {[%clk 0:02:42]}  Nc6 {[%clk 0:02:59]} 6. Nf3 {[%clk 0:02:42]}  Bg4 {[%clk 0:02:58]} 7. cxd5 {[%clk 0:02:42]}  Nxd5 {[%clk 0:02:58]} 8. Qb3 {[%clk 0:02:42]}  Bxf3 {[%clk 0:02:57]} 9. gxf3 {[%clk 0:02:42]}  e6 {[%clk 0:02:58]} 10. Qxb7 {[%clk 0:02:36]}  Nxd4 {[%clk 0:02:56]} 11. Bb5+ {[%clk 0:02:36]}  Nxb5 {[%clk 0:02:56]} 12. Qc6+ {[%clk 0:02:36]}  Ke7 {[%clk 0:02:56]} 13. Qxb5 {[%clk 0:02:35]}  Qd7 {[%clk 0:02:56]} 14. Nxd5+ {[%clk 0:02:35]}  Qxd5 {[%clk 0:02:55]} 15. Bg5+ {[%clk 0:02:35]}  f6 {[%clk 0:02:54]} 16. Qxd5 {[%clk 0:02:36]}  exd5 {[%clk 0:02:55]} 17. Be3 {[%clk 0:02:35]}  Ke6 {[%clk 0:02:56]} 18. O-O-O {[%clk 0:02:34]}  Bb4 {[%clk 0:02:55]} 19. a3 {[%clk 0:02:29]}  Rac8+ {[%clk 0:02:53]} 20. Kb1 {[%clk 0:02:29]}  Bc5 {[%clk 0:02:54]} 21. Rhe1 {[%clk 0:02:27]}  Bxe3 {[%clk 0:02:53]} 22. Rxe3+ {[%clk 0:02:27]}  Kf5 {[%clk 0:02:54]} 23. Rxd5+ {[%clk 0:02:21]}  Kg6 {[%clk 0:02:54]} 24. Re7 {[%clk 0:02:17]}  Rc4 {[%clk 0:02:50]} 25. Rxa7 {[%clk 0:02:09]}  Rh4 {[%clk 0:02:50]} 26. Rdd7 {[%clk 0:02:07]}  Rg8 {[%clk 0:02:51]} 27. Rac7 {[%clk 0:01:54]}  Rxh2 {[%clk 0:02:50]} 28. Rc2 {[%clk 0:01:54]}  h5 {[%clk 0:02:41]} 29. b4 {[%clk 0:01:54]}  h4 {[%clk 0:02:41]} 30. b5 {[%clk 0:01:53]}  h3 {[%clk 0:02:41]} 31. Rd1 {[%clk 0:01:42]}  Rg2 {[%clk 0:02:41]} 32. a4 {[%clk 0:01:35]}  h2 {[%clk 0:02:41]} 33. Rh1 {[%clk 0:01:20]}  Ra8 {[%clk 0:02:17]} 34. Kb2 {[%clk 0:00:42]}  Rxa4 {[%clk 0:02:15]} 35. Kb3 {[%clk 0:00:42]}  Rh4 {[%clk 0:01:59]} 36. b6 {[%clk 0:00:27]}  Rg1 {[%clk 0:01:33]} 37. b7 {[%clk 0:00:19]}  Rxh1 {[%clk 0:01:22]} 38. b8=Q {[%clk 0:00:17]}  Rb1+ {[%clk 0:01:22]} 39. Rb2 {[%clk 0:00:17]}  Rxb2+ {[%clk 0:01:23]} 40. Kxb2 {[%clk 0:00:17]}  h1=Q {[%clk 0:01:24]} 41. Qe8+ {[%clk 0:00:16]}  Kh7 {[%clk 0:01:22]} 0-1


[Site "https://www.chess.com"]

[Event "Titled Tuesday Blitz June 21 Late 2022"]
[White "Peatman, Carter"]
[Black "Romanchuk, Viktor"]
[WhiteFideId "2096480"]
[BlackFideId "14109271"]
[WhiteElo "2478"]
[BlackElo "2242"]
[Result "1-0"]
[Round "09"]
[TimeControl "180+1"]
[Date "2022.06.22"]
[WhiteClock "0:00:09"]
[BlackClock "0:00:06"]

1. d4 {[%clk 0:03:00]}  d5 {[%clk 0:02:59]} 2. Bf4 {[%clk 0:02:58]}  Nf6 {[%clk 0:02:58]} 3. e3 {[%clk 0:02:58]}  c5 {[%clk 0:02:58]} 4. dxc5 {[%clk 0:02:54]}  e6 {[%clk 0:02:53]} 5. b4 {[%clk 0:02:52]}  a5 {[%clk 0:02:51]} 6. c3 {[%clk 0:02:47]}  axb4 {[%clk 0:02:32]} 7. cxb4 {[%clk 0:02:48]}  b6 {[%clk 0:02:32]} 8. Bxb8 {[%clk 0:02:45]}  Rxb8 {[%clk 0:02:31]} 9. Bb5+ {[%clk 0:02:43]}  Ke7 {[%clk 0:02:28]} 10. c6 {[%clk 0:02:40]}  Qd6 {[%clk 0:02:24]} 11. a3 {[%clk 0:02:31]}  g6 {[%clk 0:02:10]} 12. Nd2 {[%clk 0:02:23]}  Bg7 {[%clk 0:02:08]} 13. Rc1 {[%clk 0:02:08]}  Ra8 {[%clk 0:02:04]} 14. Qb3 {[%clk 0:02:06]}  Ba6 {[%clk 0:01:45]} 15. Bxa6 {[%clk 0:01:55]}  Rxa6 {[%clk 0:01:43]} 16. Ngf3 {[%clk 0:01:16]}  Rha8 {[%clk 0:01:40]} 17. Nb1 {[%clk 0:01:11]}  b5 {[%clk 0:01:25]} 18. Nd4 {[%clk 0:01:10]}  Rb6 {[%clk 0:01:23]} 19. Nc3 {[%clk 0:00:56]}  e5 {[%clk 0:00:56]} 20. Ncxb5 {[%clk 0:00:55]}  Qb8 {[%clk 0:00:51]} 21. c7 {[%clk 0:00:52]}  Qb7 {[%clk 0:00:51]} 22. a4 {[%clk 0:00:28]}  exd4 {[%clk 0:00:48]} 23. Nxd4 {[%clk 0:00:29]}  Rc8 {[%clk 0:00:39]} 24. Qc2 {[%clk 0:00:29]}  Ne4 {[%clk 0:00:36]} 25. b5 {[%clk 0:00:24]}  Bxd4 {[%clk 0:00:15]} 26. exd4 {[%clk 0:00:23]}  Kf6 {[%clk 0:00:13]} 27. O-O {[%clk 0:00:23]}  Kg7 {[%clk 0:00:12]} 28. Rfe1 {[%clk 0:00:20]}  Nd6 {[%clk 0:00:12]} 29. Qc5 {[%clk 0:00:17]}  Nc4 {[%clk 0:00:12]} 30. Re7 {[%clk 0:00:12]}  Re6 {[%clk 0:00:09]} 31. Rxe6 {[%clk 0:00:11]}  fxe6 {[%clk 0:00:10]} 32. Qe7+ {[%clk 0:00:11]}  Kh6 {[%clk 0:00:09]} 33. Rc3 {[%clk 0:00:08]}  g5 {[%clk 0:00:06]} 34. Qf6+ {[%clk 0:00:08]}  Kh5 {[%clk 0:00:05]} 35. Rh3+ {[%clk 0:00:08]}  Kg4 {[%clk 0:00:06]} 36. Qf3# {[%clk 0:00:09]} 1-0


[Site "https://www.chess.com"]

[Event "Titled Tuesday Blitz June 21 Late 2022"]
[White "Rama, Tejas"]
[Black "Sibilio, Mario"]
[WhiteFideId "30907381"]
[BlackFideId "800422"]
[WhiteElo "1430"]
[BlackElo "2296"]
[Result "0-1"]
[Round "09"]
[TimeControl "180+1"]
[Date "2022.06.22"]
[WhiteClock "0:00:03"]
[BlackClock "0:00:04"]

1. d4 {[%clk 0:03:00]}  Nf6 {[%clk 0:02:59]} 2. c4 {[%clk 0:03:00]}  e6 {[%clk 0:02:58]} 3. Nf3 {[%clk 0:02:56]}  c5 {[%clk 0:02:57]} 4. d5 {[%clk 0:02:51]}  exd5 {[%clk 0:02:57]} 5. cxd5 {[%clk 0:02:52]}  d6 {[%clk 0:02:57]} 6. Nc3 {[%clk 0:02:50]}  g6 {[%clk 0:02:52]} 7. e4 {[%clk 0:02:25]}  Bg7 {[%clk 0:02:51]} 8. Nd2 {[%clk 0:02:24]}  a6 {[%clk 0:02:48]} 9. a4 {[%clk 0:02:24]}  O-O {[%clk 0:02:46]} 10. Be2 {[%clk 0:02:24]}  Re8 {[%clk 0:02:45]} 11. O-O {[%clk 0:02:23]}  Nbd7 {[%clk 0:02:44]} 12. Re1 {[%clk 0:02:19]}  Rb8 {[%clk 0:02:32]} 13. a5 {[%clk 0:02:01]}  b5 {[%clk 0:02:29]} 14. axb6 {[%clk 0:01:55]}  Rxb6 {[%clk 0:02:01]} 15. Nc4 {[%clk 0:01:52]}  Nxe4 {[%clk 0:01:54]} 16. Nxe4 {[%clk 0:01:43]}  Rxe4 {[%clk 0:01:52]} 17. Nxb6 {[%clk 0:01:42]}  Nxb6 {[%clk 0:01:51]} 18. Bxa6 {[%clk 0:01:36]}  Rd4 {[%clk 0:01:34]} 19. Qe2 {[%clk 0:01:25]}  Bd7 {[%clk 0:01:17]} 20. Bb7 {[%clk 0:01:02]}  Rb4 {[%clk 0:01:16]} 21. Bc6 {[%clk 0:00:56]}  h5 {[%clk 0:01:11]} 22. Ra7 {[%clk 0:00:50]}  Bf5 {[%clk 0:00:52]} 23. Qe8+ {[%clk 0:00:35]}  Qxe8 {[%clk 0:00:50]} 24. Rxe8+ {[%clk 0:00:36]}  Kh7 {[%clk 0:00:50]} 25. Rxf7 {[%clk 0:00:33]}  Rd4 {[%clk 0:00:46]} 26. h3 {[%clk 0:00:20]}  Rd1+ {[%clk 0:00:31]} 27. Kh2 {[%clk 0:00:20]}  Rxc1 {[%clk 0:00:31]} 28. Ree7 {[%clk 0:00:20]}  Kh6 {[%clk 0:00:23]} 29. Rxg7 {[%clk 0:00:19]}  Kg5 {[%clk 0:00:22]} 30. g3 {[%clk 0:00:17]}  Rc2 {[%clk 0:00:16]} 31. Kg2 {[%clk 0:00:10]}  h4 {[%clk 0:00:10]} 32. g4 {[%clk 0:00:07]}  Bd3 {[%clk 0:00:08]} 33. Be8 {[%clk 0:00:04]}  Nxd5 {[%clk 0:00:06]} 34. Rd7 {[%clk 0:00:03]}  Nf4+ {[%clk 0:00:05]} 35. Kf3 {[%clk 0:00:03]}  d5 {[%clk 0:00:05]} 36. Rd6 {[%clk 0:00:03]}  Be4+ {[%clk 0:00:04]} 37. Ke3 {[%clk 0:00:03]}  Re2# {[%clk 0:00:04]} 0-1


[Site "https://www.chess.com"]

[Event "Titled Tuesday Blitz June 21 Late 2022"]
[White "Reprintsev, Alexander"]
[Black "Guz, Ari"]
[WhiteFideId "14100541"]
[BlackFideId "2825759"]
[WhiteElo "2108"]
[BlackElo "1913"]
[Result "0-1"]
[Round "09"]
[TimeControl "180+1"]
[Date "2022.06.21"]
[WhiteClock "0:00:02"]
[BlackClock "0:00:30"]

1. e4 {[%clk 0:03:00]}  c5 {[%clk 0:02:57]} 2. b3 {[%clk 0:02:59]}  e5 {[%clk 0:02:56]} 3. Bb2 {[%clk 0:02:58]}  Nc6 {[%clk 0:02:57]} 4. f4 {[%clk 0:02:57]}  d6 {[%clk 0:02:57]} 5. Qf3 {[%clk 0:02:55]}  Nf6 {[%clk 0:02:52]} 6. Bb5 {[%clk 0:02:54]}  Bd7 {[%clk 0:02:51]} 7. Ne2 {[%clk 0:02:53]}  a6 {[%clk 0:02:49]} 8. Bxc6 {[%clk 0:02:52]}  Bxc6 {[%clk 0:02:50]} 9. d3 {[%clk 0:02:51]}  Qc7 {[%clk 0:02:41]} 10. c4 {[%clk 0:02:50]}  O-O-O {[%clk 0:02:36]} 11. Nbc3 {[%clk 0:02:49]}  h5 {[%clk 0:02:34]} 12. h3 {[%clk 0:02:46]}  h4 {[%clk 0:02:30]} 13. O-O {[%clk 0:02:43]}  Be7 {[%clk 0:02:20]} 14. a3 {[%clk 0:02:41]}  Rdg8 {[%clk 0:02:11]} 15. Nd5 {[%clk 0:02:32]}  Bxd5 {[%clk 0:01:58]} 16. exd5 {[%clk 0:02:31]}  Kb8 {[%clk 0:01:57]} 17. b4 {[%clk 0:02:24]}  g5 {[%clk 0:01:55]} 18. fxe5 {[%clk 0:02:16]}  g4 {[%clk 0:01:34]} 19. exd6 {[%clk 0:02:14]}  Bxd6 {[%clk 0:01:29]} 20. Qxf6 {[%clk 0:02:10]}  gxh3 {[%clk 0:01:29]} 21. Nf4 {[%clk 0:01:54]}  hxg2 {[%clk 0:01:26]} 22. Rf3 {[%clk 0:01:46]}  h3 {[%clk 0:01:15]} 23. Kh2 {[%clk 0:01:32]}  Rh7 {[%clk 0:01:03]} 24. Re1 {[%clk 0:01:29]}  Rg4 {[%clk 0:00:55]} 25. bxc5 {[%clk 0:00:30]}  Bxf4+ {[%clk 0:00:44]} 26. Rxf4 {[%clk 0:00:28]}  Rxf4 {[%clk 0:00:41]} 27. Re8+ {[%clk 0:00:16]}  Ka7 {[%clk 0:00:36]} 28. Qb6+ {[%clk 0:00:10]}  Qxb6 {[%clk 0:00:36]} 29. cxb6+ {[%clk 0:00:10]}  Kxb6 {[%clk 0:00:37]} 30. Be5 {[%clk 0:00:07]}  Rf1 {[%clk 0:00:30]} 31. Bd4+ {[%clk 0:00:06]}  Ka5 {[%clk 0:00:31]} 32. Rg8 {[%clk 0:00:01]}  Rh1+ {[%clk 0:00:29]} 33. Kg3 {[%clk 0:00:02]}  g1=Q+ {[%clk 0:00:30]} 0-1


[Site "https://www.chess.com"]